bitfinex/quotes_ETHUSD_20251011
["timestamp","ask_amount","ask_price","bid_price","bid_amount"]
[1760165605230,2.63772101,3792.6,3792.2,0.1312]
[1760165605526,2.6377136,3792.6,3792.5,0.1312]
[1760165605890,0.001,3792.6,3792.5,0.5601]
[1760165607284,0.001,3792.6,3792.5,0.4289]
[1760165607523,0.001,3792.6,3792.5,3.69928312]
[1760165607820,0.001,3792.6,3792.5,5.61928312]
[1760165608032,1.370103,3792.7,3792.6,5.1903136]
[1760165609723,1.370103,3792.7,3792.5,3.27037158]
[1760165610023,1.370103,3792.7,3792.6,17.7703136]
[1760165610321,1.370103,3792.7,3792.6,14.5]
[1760165616900,1.371103,3792.7,3792.6,14.5]
[1760165617308,1.371103,3792.7,3792.6,14.6312]
[1760165621308,4.00774707,3792.7,3792.6,14.6312]
[1760165621638,4.44084707,3792.7,3792.6,14.6312]
[1760165621834,4.44084707,3792.7,3792.6,14.5]
[1760165622399,6.36084707,3792.7,3792.6,14.5]
[1760165623225,5.92774707,3792.7,3792.6,14.5]
[1760165624707,2.63692578,3792.3,3791.4,0.6336]
[1760165625244,2.63712669,3792.1,3791.4,3.27112343]
[1760165625747,2.63712669,3792.1,3792.0,14.5]
[1760165625900,1.371103,3792.7,3792.0,14.5]
[1760165625901,2.63700758,3792.2,3792.0,14.5]
[1760165626106,1.371103,3792.7,3792.2,2.63694505]
[1760165626308,1.371103,3792.7,3792.1,0.6336]
[1760165626514,1.371103,3792.7,3792.2,0.6336]
[1760165626723,1.371103,3792.7,3792.6,14.5]
[1760165627609,1.371103,3792.7,3792.6,17.7703136]
[1760165627832,1.30121919,3792.7,3792.6,15.1336]
[1760165629241,1.30121919,3792.7,3792.6,15.92710489]
[1760165632416,1.30121919,3792.7,3792.6,15.29350489]
[1760165632632,3.93786326,3792.7,3792.6,14.5]
[1760165633611,3.93786326,3792.7,3792.6,14.6312]
[1760165633838,1.30121919,3792.7,3792.6,14.6312]
[1760165634041,1.30121919,3792.7,3792.6,14.6332]
[1760165634248,1.30121919,3792.7,3792.2,0.79362244]
[1760165634249,2.63692218,3792.3,3792.2,0.002]
[1760165634411,2.63789601,3790.9,3789.9,0.0022]
[1760165634617,2.63789601,3790.9,3790.8,14.502]
[1760165640461,2.63776211,3791.1,3790.8,14.502]
[1760165640629,2.1423,3792.0,3790.9,0.0042]
[1760165640947,2.63782633,3791.1,3790.8,0.002]
[1760165641149,2.63770807,3791.2,3790.8,0.002]
[1760165641349,2.63775685,3791.1,3791.0,14.5]
[1760165644356,2.63775685,3791.1,3791.0,14.6312]
[1760165646919,0.1312,3791.9,3791.0,14.6354]
[1760165647102,3.93791742,3792.7,3791.1,0.6378]
[1760165647103,14.33077361,3792.5,3791.1,0.6378]
[1760165647305,14.19957361,3792.5,3791.8,0.1312]
[1760165647508,16.83635673,3792.5,3792.4,14.6312]
[1760165647893,3.93791048,3792.7,3792.4,14.6312]
[1760165647894,1.30121919,3792.7,3792.4,14.6312]
[1760165648285,1.30121919,3792.7,3792.6,0.1312]
[1760165648706,1.30121919,3792.7,3792.6,14.6312]
[1760165648911,3.93787232,3792.7,3792.6,14.6312]
[1760165650886,3.93787232,3792.7,3792.6,14.6332]
[1760165651583,4.39687232,3792.7,3792.6,14.502]
[1760165651915,18.59644593,3792.7,3792.6,14.502]
[1760165652092,18.59644593,3792.7,3792.6,0.002]
[1760165652093,20.51644593,3792.7,3792.6,0.002]
[1760165652499,2.63692218,3792.3,3792.2,0.002]
[1760165652825,4.55789601,3790.9,3789.0,0.17]
[1760165652978,18.75746962,3790.9,3789.1,0.44550001]
[1760165653194,19.21646962,3790.9,3790.3,14.5]
[1760165653396,18.75746962,3790.9,3790.3,14.5]
[1760165653634,18.75746962,3790.9,3789.1,2.64114222]
[1760165653934,19.21646962,3790.9,3789.6,0.6336]
[1760165654090,19.21646962,3790.9,3790.8,14.502]
[1760165656197,1.30121919,3792.7,3791.6,1.92]
[1760165656401,1.30121919,3792.7,3790.8,17.1399531]
[1760165656402,2.6367136,3792.6,3791.8,0.6336]
[1760165656692,14.19957361,3792.0,3791.2,0.4435]
[1760165656957,16.83670441,3792.0,3791.9,14.5]
[1760165657533,17.29570441,3792.0,3791.9,14.5]
[1760165657733,19.21570441,3792.0,3791.9,14.5]
[1760165660008,4.5571308,3792.0,3791.9,14.5]
[1760165660514,2.6371308,3792.0,3791.9,14.5]
[1760165660740,14.19957361,3792.5,3791.9,14.5]
[1760165660950,2.63712177,3792.1,3791.6,0.4435]
[1760165661131,2.63714226,3792.0,3791.7,0.4435]
[1760165661532,2.63714226,3792.0,3791.9,14.6312]
[1760165661739,2.63714226,3792.0,3791.9,14.5]
[1760165662060,1.30121919,3792.7,3791.9,14.5]
[1760165662256,2.6371308,3792.0,3791.9,14.5]
[1760165662452,14.19957361,3792.2,3791.9,14.5]
[1760165662647,2.63707041,3792.1,3791.9,14.5]
[1760165662826,2.63707041,3792.1,3791.5,0.4435]
[1760165663256,14.19957361,3792.2,3791.5,0.4435]
[1760165663257,2.63715762,3792.0,3791.5,0.4435]
[1760165663440,2.63707345,3792.1,3791.6,0.4435]
[1760165663644,2.63715422,3792.0,3791.7,0.4435]
[1760165663952,2.63715422,3792.0,3791.9,14.5]
[1760165667072,2.63789601,3790.9,3790.8,0.002]
[1760165667635,2.63789601,3790.9,3790.8,14.502]
[1760165670866,4.55789601,3790.9,3790.8,14.502]
[1760165671066,5.00179601,3790.9,3790.8,14.502]
[1760165672672,4.55789601,3790.9,3790.8,14.502]
[1760165676059,1.92,3790.9,3790.8,14.502]
[1760165676379,4.55789601,3790.9,3790.8,14.6332]
[1760165676678,2.76865764,3791.6,3790.8,14.6332]
[1760165676679,0.1312,3791.6,3790.8,14.6332]
[1760165676882,2.6376418,3791.3,3790.8,0.1332]
[1760165677082,2.63789601,3790.9,3790.8,0.002]
[1760165677283,2.63789601,3790.9,3790.8,14.502]
[1760165679185,3.08179601,3790.9,3790.8,14.502]
[1760165680169,3.08179601,3790.9,3790.4,0.002]
[1760165680170,2.63817438,3790.5,3790.4,0.002]
[1760165680360,2.63907948,3789.2,3789.1,0.00200001]
[1760165680560,3.07438823,3789.2,3789.1,0.00200001]
[1760165680766,5.48069266,3789.2,3789.1,0.00200001]
[1760165681079,5.95509266,3789.2,3789.1,0.00200001]
[1760165681273,5.03347948,3789.2,3789.1,0.00200001]
[1760165683183,5.79069643,3789.2,3789.1,0.00200001]
[1760165685276,5.03347948,3789.2,3789.1,0.00200001]
[1760165686102,4.55907948,3789.2,3789.1,0.00200001]
[1760165689589,5.03347948,3789.2,3789.1,0.00200001]
[1760165693289,4.5593581,3788.8,3788.7,0.002]
[1760165693515,18.5985627,3788.8,3788.7,0.002]
[1760165693807,19.7065627,3788.8,3788.7,0.002]
[1760165694380,20.21144632,3788.8,3788.7,0.002]
[1760165694580,19.7065627,3788.8,3788.7,0.002]
[1760165695586,2.64019431,3787.6,3787.5,14.5]
[1760165695781,5.03459431,3787.6,3787.5,14.5]
[1760165696105,4.56019431,3787.6,3787.5,14.5]
[1760165696278,5.03459431,3787.6,3787.5,14.5]
[1760165696911,5.03459431,3787.6,3786.7,1.82679063]
[1760165696912,2.64075208,3786.8,3786.7,1.82679063]
[1760165697112,5.03515208,3786.8,3786.7,1.82679063]
[1760165697479,5.03515208,3786.8,3786.7,16.32679063]
[1760165700424,5.03515208,3786.8,3786.7,1.82679063]
[1760165700943,5.03515208,3786.8,3786.7,16.32679063]
[1760165702314,4.56075208,3786.8,3786.7,16.32679063]
[1760165702826,2.64058219,3787.1,3786.7,16.32679063]
[1760165703030,2.64074109,3786.9,3786.7,1.82679063]
[1760165703242,0.4606,3787.8,3786.7,1.82679063]
[1760165703416,0.4606,3787.8,3786.7,2.28019063]
[1760165703622,16.90872942,3787.9,3786.7,2.28019063]
[1760165703623,2.64048701,3787.2,3786.7,2.28019063]
[1760165703811,2.64048701,3787.2,3786.8,0.4534]
[1760165704012,2.64041107,3787.3,3786.9,0.4534]
[1760165704212,2.64034642,3787.4,3786.9,0.4534]
[1760165704412,2.64061262,3787.0,3786.7,1.82679063]
[1760165704712,2.64055844,3787.1,3786.7,1.82679063]
[1760165705018,2.64041946,3787.3,3786.7,1.82679063]
[1760165705210,14.0392046,3787.9,3786.7,1.82679063]
[1760165705410,14.0392046,3787.9,3786.8,0.4534]
[1760165705630,1.92,3787.8,3786.8,0.4534]
[1760165705810,2.64047114,3787.3,3786.8,0.4534]
[1760165706019,2.64035068,3787.4,3786.8,0.4534]
[1760165706210,1.92,3787.3,3786.8,0.4534]
[1760165706410,1.92,3787.5,3786.8,0.4534]
[1760165706611,14.0392046,3788.7,3786.9,0.6336]
[1760165706927,14.0392046,3788.7,3786.8,0.4534]
[1760165706928,14.0392046,3788.7,3788.3,0.1312]
[1760165707262,0.1312,3788.9,3788.4,1.087]
[1760165707407,2.63928578,3789.0,3788.5,0.4534]
[1760165707612,1.92,3788.9,3788.5,0.4534]
[1760165708143,2.63912572,3789.2,3788.5,0.4534]
[1760165708316,2.63915212,3789.1,3788.5,0.4534]
[1760165709222,14.0392046,3789.8,3788.6,0.6336]
[1760165709417,14.0392046,3789.8,3788.7,0.4534]
[1760165709612,14.0392046,3789.8,3788.8,0.6336]
[1760165709817,1.92,3789.7,3788.9,2.63925615]
[1760165710225,14.0392046,3790.6,3789.1,0.6336]
[1760165710442,2.63924501,3790.4,3789.1,0.6336]
[1760165710743,1.92,3790.3,3789.6,0.6336]
[1760165710925,2.63924501,3790.4,3789.6,0.6336]
[1760165711126,2.63924501,3790.4,3789.7,0.4534]
[1760165711350,2.63831395,3790.3,3789.7,0.4534]
[1760165711527,2.63839335,3790.2,3789.8,0.4534]
[1760165711723,0.001,3790.4,3788.2,0.17]
[1760165711724,0.001,3790.4,3789.2,0.4534]
[1760165712056,2.63879448,3789.7,3789.2,0.4534]
[1760165712250,2.63881516,3789.6,3789.2,0.4534]
[1760165712544,1.92,3790.1,3788.8,1.087]
[1760165712716,1.92,3789.7,3788.8,1.087]
[1760165712917,2.6390101,3789.3,3788.8,1.087]
[1760165713252,2.63894357,3789.4,3788.9,0.4534]
[1760165713835,2.63874388,3789.7,3789.0,0.4534]
[1760165714042,1.92,3789.5,3789.0,0.4534]
[1760165714374,2.63895273,3789.4,3789.1,0.4534]
[1760165714739,2.63912449,3789.2,3788.7,0.4534]
[1760165714974,2.63912449,3789.2,3788.3,0.6336]
[1760165714975,1.92,3789.7,3788.3,0.4534]
[1760165715170,2.63921876,3789.1,3788.3,0.4534]
[1760165715776,1.92,3789.7,3788.3,0.4534]
[1760165716072,2.63942495,3788.8,3788.3,0.4534]
[1760165716269,2.3806,3789.7,3788.3,0.4534]
[1760165716270,1.92,3789.7,3788.3,0.4534]
[1760165716477,2.63880092,3789.6,3788.3,0.4534]
[1760165716680,2.63927417,3789.0,3788.3,0.4534]
[1760165716884,2.63880092,3789.6,3788.3,0.4534]
[1760165717373,0.4606,3789.5,3788.2,0.17]
[1760165717580,1.92,3788.7,3787.3,0.4534]
[1760165717746,2.63977614,3788.2,3788.1,0.1312]
[1760165718078,2.64024831,3787.6,3787.3,0.4534]
[1760165718277,2.64033373,3787.4,3786.9,0.4534]
[1760165718444,2.63964967,3788.4,3786.7,1.82679063]
[1760165718445,2.64019431,3787.6,3787.5,0.132]
[1760165718754,2.64019431,3787.6,3786.7,2.28019063]
[1760165718755,2.64026402,3787.5,3787.4,0.132]
[1760165719268,2.64026402,3787.5,3786.7,1.82679063]
[1760165719269,2.64068321,3786.9,3786.7,1.82679063]
[1760165719451,2.64075208,3786.8,3786.7,1.82679063]
[1760165719653,4.56075208,3786.8,3786.7,1.82679063]
[1760165721373,5.02135208,3786.8,3786.7,1.82679063]
[1760165724212,1.92,3786.8,3786.7,1.82679063]
[1760165724704,5.02135208,3786.8,3786.7,1.82679063]
[1760165725006,19.06055668,3786.8,3786.7,1.82679063]
[1760165725473,18.59995668,3786.8,3786.7,1.82679063]
[1760165727167,19.06055668,3786.8,3786.7,1.82679063]
[1760165727397,18.59995668,3786.8,3786.7,1.82679063]
[1760165729004,19.04095668,3786.8,3786.7,1.82679063]
[1760165729189,18.59995668,3786.8,3786.7,1.82679063]
[1760165730712,18.59995668,3786.8,3786.7,16.32679063]
[1760165731504,19.04095668,3786.8,3786.7,16.32679063]
[1760165732882,18.59995668,3786.8,3786.7,16.32679063]
[1760165733120,19.04095668,3786.8,3786.7,16.32679063]
[1760165735798,19.04095668,3786.8,3786.7,1.82679063]
[1760165736919,19.04095668,3786.8,3786.6,1e-08]
[1760165736920,4.69282182,3786.7,3786.6,1e-08]
[1760165737119,5.32642182,3786.7,3786.6,1e-08]
[1760165737319,5.76742182,3786.7,3786.6,1e-08]
[1760165738017,5.00182182,3786.7,3786.6,1e-08]
[1760165739535,2.64082182,3786.7,3786.6,1e-08]
[1760165739687,2.64080634,3786.8,3786.6,1e-08]
[1760165739887,2.64026402,3787.5,3786.6,0.44650001]
[1760165740087,2.64054708,3787.1,3786.7,14.5]
[1760165740324,1.92,3787.2,3786.8,0.4465]
[1760165740619,1.92,3787.2,3786.6,1e-08]
[1760165740620,2.64082182,3786.7,3786.6,1e-08]
[1760165741133,1.92,3786.8,3786.6,14.50000001]
[1760165741340,14.0392046,3787.6,3786.7,0.4465]
[1760165741517,2.64033429,3787.4,3786.7,0.4465]
[1760165741839,2.64026403,3787.5,3787.3,14.5]
[1760165741990,2.64026403,3787.5,3787.3,14.9465]
[1760165742193,0.001,3788.3,3787.5,0.6336]
[1760165742400,0.001,3788.3,3787.6,0.4465]
[1760165742627,2.63977614,3788.2,3787.6,0.4465]
[1760165742922,1.92,3788.1,3787.6,0.4465]
[1760165743125,1.92,3787.6,3787.0,0.6336]
[1760165743295,2.64015067,3787.7,3787.1,0.4465]
[1760165743498,2.63984583,3788.1,3787.1,0.4465]
[1760165743822,2.63984583,3788.1,3788.0,14.5]
[1760165744001,1.921,3788.3,3788.0,14.5]
[1760165744207,0.001,3788.3,3788.1,0.64289845]
[1760165744402,2.6407105,3788.3,3788.1,0.6165]
[1760165744731,4.55977614,3788.2,3788.1,0.17]
[1760165744899,4.55977614,3788.2,3787.4,2.6403223]
[1760165744900,1.92,3788.1,3787.8,0.02640054]
[1760165745100,1.921,3788.3,3788.1,0.17]
[1760165745324,0.001,3788.3,3788.1,0.17]
[1760165745524,1.92,3788.2,3787.4,0.4465]
[1760165745742,2.63998337,3788.0,3787.4,0.4465]
[1760165745898,2.64001043,3787.9,3787.4,0.4465]
[1760165746225,1.92,3787.9,3787.8,14.5]
[1760165746433,1.92,3788.1,3787.8,14.5]
[1760165746731,1.92,3788.1,3787.9,0.4465]
[1760165746943,2.64072356,3788.3,3787.8,14.5]
[1760165747242,1.921,3788.3,3787.9,0.4465]
[1760165747408,1.92,3787.8,3787.4,0.4465]
[1760165747608,1.92,3787.8,3787.7,14.5]
[1760165747810,4.56005491,3787.8,3787.7,14.5]
[1760165748235,2.64014669,3787.7,3786.6,2.86166864]
[1760165748445,1.92,3787.6,3786.9,0.6336]
[1760165748841,2.64021411,3787.6,3786.7,0.6336]
[1760165749140,1.92,3787.5,3786.7,0.6336]
[1760165749338,4.56019431,3787.6,3786.7,0.6336]
[1760165749339,1.92,3787.3,3786.7,0.6336]
[1760165749544,1.92,3787.3,3786.7,3.27442104]
[1760165749726,1.92,3787.3,3787.2,14.632]
[1760165751440,4.56028187,3787.5,3787.2,14.6687]
[1760165751926,1.92,3787.3,3787.2,0.0367]
[1760165752431,2.64040345,3787.3,3787.2,14.632]
[1760165753266,2.64040345,3787.3,3787.2,14.5]
[1760165753416,3.09880345,3787.3,3787.2,14.5]
[1760165753961,3.09880345,3787.3,3786.3,0.132]
[1760165753962,4.56103105,3786.4,3786.3,0.132]
[1760165754126,4.56110081,3786.3,3786.0,0.132]
[1760165754448,4.56110081,3786.3,3785.1,0.4465]
[1760165754449,5.04871452,3786.3,3785.1,0.4465]
[1760165754664,5.01950081,3786.3,3785.5,0.132]
[1760165754875,5.01950081,3786.3,3785.1,0.132]
[1760165755046,5.01950081,3786.3,3785.6,14.5]
[1760165755435,4.56110081,3786.3,3785.6,14.5]
[1760165755669,2.6415194,3785.7,3785.6,14.5]
[1760165755831,5.0199194,3785.7,3785.6,14.5]
[1760165758512,0.2203,3786.2,3784.8,0.1606]
[1760165758766,1.92,3785.1,3784.8,0.1606]
[1760165758959,2.64192034,3785.2,3784.8,0.1606]
[1760165759134,1.92,3785.1,3784.8,0.1606]
[1760165759337,1.92,3785.1,3785.0,14.5]
[1760165759573,2.64193812,3785.1,3785.0,14.5]
[1760165760441,4.56193812,3785.1,3785.0,14.5]
[1760165761459,5.03403812,3785.1,3785.0,14.5]
[1760165761662,4.56193812,3785.1,3785.0,14.5]
[1760165761971,5.03403812,3785.1,3785.0,14.5]
[1760165762370,1.92,3785.1,3785.0,14.5]
[1760165762539,4.56193812,3785.1,3785.0,14.5]
[1760165763071,4.56200792,3785.0,3784.9,0.03783453]
[1760165763267,5.06332163,3785.0,3784.9,0.03783453]
[1760165763472,4.56200792,3785.0,3784.9,14.53783453]
[1760165765155,2.64200792,3785.0,3784.9,14.53783453]
[1760165765554,2.64200792,3785.0,3784.9,14.66983453]
[1760165765772,3.11410792,3785.0,3784.9,14.53783453]
[1760165768596,2.64200792,3785.0,3784.9,14.53783453]
[1760165769177,3.11410792,3785.0,3784.9,14.53783453]
[1760165769591,3.24610792,3785.0,3784.9,14.53783453]
[1760165770858,3.24610792,3785.0,3784.9,0.03783453]
[1760165777411,5.16610792,3785.0,3784.9,0.03783453]
[1760165777607,2.052,3785.0,3784.9,0.03783453]
[1760165777811,14.36527636,3785.6,3784.9,0.16983453]
[1760165778034,2.64200792,3785.0,3784.9,0.16983453]
[1760165778544,3.14332163,3785.0,3784.9,14.53783453]
[1760165779431,3.11410792,3785.0,3784.9,14.53783453]
[1760165780014,3.14332163,3785.0,3784.9,14.53783453]
[1760165783844,3.14332163,3785.0,3784.9,0.03783453]
[1760165784739,3.11410792,3785.0,3784.9,0.03783453]
[1760165785145,3.14332163,3785.0,3784.9,0.03783453]
[1760165785452,3.11410792,3785.0,3784.9,0.03783453]
[1760165787562,5.03410792,3785.0,3784.9,14.53783453]
[1760165788636,4.56200792,3785.0,3784.9,14.53783453]
[1760165788841,0.132,3785.4,3784.9,14.66983453]
[1760165789163,2.64200792,3785.0,3784.9,14.53783453]
[1760165789759,3.08820792,3785.0,3784.9,14.53783453]
[1760165789960,3.11742163,3785.0,3784.9,14.53783453]
[1760165790862,3.08820792,3785.0,3784.9,14.53783453]
[1760165791060,3.11742163,3785.0,3784.9,14.53783453]
[1760165791360,3.08820792,3785.0,3784.9,14.53783453]
[1760165793177,3.11742163,3785.0,3784.9,0.03783453]
[1760165793570,3.08820792,3785.0,3784.9,0.03783453]
[1760165796134,19.40269799,3785.0,3784.9,0.03783453]
[1760165796326,18.92728428,3785.0,3784.9,0.03783453]
[1760165796699,17.00728428,3785.0,3784.9,14.53783453]
[1760165797025,16.87528428,3785.0,3784.9,14.53783453]
[1760165797226,18.79528428,3785.0,3784.9,14.53783453]
[1760165797531,2.64191834,3785.2,3784.9,15.14453453]
[1760165797924,1.92,3785.1,3784.9,15.14453453]
[1760165798427,1.92,3785.6,3784.9,14.66983453]
[1760165798631,1.92,3785.1,3784.9,14.66983453]
[1760165798926,1.92,3785.1,3784.9,14.53783453]
[1760165799115,1.92,3785.1,3785.0,0.132]
[1760165799297,4.56193812,3785.1,3785.0,0.132]
[1760165801514,2.64193812,3785.1,3785.0,0.132]
[1760165802042,2.64193812,3785.1,3785.0,14.5]
[1760165802538,4.56193812,3785.1,3785.0,14.5]
[1760165804945,5.00913812,3785.1,3785.0,14.5]
[1760165805609,5.64273812,3785.1,3785.0,14.5]
[1760165805797,4.56200792,3785.0,3784.9,0.03783453]
[1760165806000,5.03842163,3785.0,3784.9,0.03783453]
[1760165806200,5.64280792,3785.0,3784.9,0.03783453]
[1760165806400,4.5624268,3784.4,3784.3,1.89221763]
[1760165806630,4.5624268,3784.4,3781.9,1.95764463]
[1760165806631,2.64277597,3783.9,3781.9,1.95764463]
[1760165806930,5.41087597,3783.9,3783.7,14.5]
[1760165807129,5.85807597,3783.9,3783.7,14.5]
[1760165807633,5.22447597,3783.9,3783.7,14.5]
[1760165807831,4.56277597,3783.9,3783.7,14.5]
[1760165808432,5.00997597,3783.9,3783.7,14.5]
[1760165808933,4.56277597,3783.9,3783.7,14.5]
[1760165809336,5.00997597,3783.9,3783.7,14.5]
[1760165810521,4.56277597,3783.9,3783.7,14.5]
[1760165810731,5.00997597,3783.9,3783.7,14.5]
[1760165811139,4.56277597,3783.9,3783.7,14.5]
[1760165811343,1.92,3783.9,3783.8,0.46480001]
[1760165811507,4.56277597,3783.9,3783.8,0.46480001]
[1760165811838,1.92,3783.9,3783.8,1e-08]
[1760165812041,1.92,3783.9,3783.8,15.09680001]
[1760165812947,0.4472,3785.4,3783.8,15.09680001]
[1760165812948,2.64217685,3784.8,3783.8,15.09680001]
[1760165813243,0.132,3785.0,3783.9,0.6632]
[1760165813244,1.92,3784.3,3783.9,0.6632]
[1760165813440,1.92,3784.2,3783.9,0.6632]
[1760165813642,2.64264148,3784.1,3783.9,0.6632]
[1760165813937,2.64258087,3784.2,3784.1,0.132]
[1760165814146,2.64258087,3784.2,3784.1,14.5]
[1760165814449,2.64258087,3784.2,3784.1,14.632]
[1760165815034,0.132,3785.1,3784.1,15.2952]
[1760165815237,1.92,3784.5,3784.1,15.2952]
[1760165815437,1.92,3784.5,3784.1,0.1984]
[1760165815635,0.132,3785.1,3784.4,0.132]
[1760165815840,2.64200398,3785.1,3784.9,14.632]
[1760165816024,4.56200792,3785.0,3784.9,14.632]
[1760165816229,2.64186832,3785.2,3784.9,14.632]
[1760165816434,2.64200792,3785.0,3784.9,14.632]
[1760165817540,0.132,3785.5,3784.9,14.632]
[1760165817745,1.92,3785.4,3784.9,14.632]
[1760165817931,2.64200792,3785.0,3784.9,15.0968]
[1760165818333,0.001,3786.2,3784.9,15.0968]
[1760165818648,2.64187209,3785.2,3785.0,0.4648]
[1760165818955,1.92,3785.3,3785.1,0.4295]
[1760165819246,1.92,3785.3,3785.2,14.9295]
[1760165819454,1.92,3785.4,3785.2,14.9295]
[1760165819622,1.92,3785.4,3785.3,0.4295]
[1760165819819,2.64172874,3785.4,3785.3,0.5615]
[1760165820033,1.92,3785.7,3785.3,0.5615]
[1760165820233,0.132,3786.1,3785.5,14.5]
[1760165820433,2.64153176,3785.7,3785.6,0.5615]
[1760165820834,4.56153176,3785.7,3785.6,0.5615]
[1760165821028,4.56153176,3785.7,3785.6,0.132]
[1760165821235,1.92,3785.7,3785.6,15.0615]
[1760165821961,0.001,3786.2,3785.6,15.0615]
[1760165822160,0.001,3786.2,3786.1,0.1831]
[1760165822161,4.56222379,3786.2,3786.1,0.1831]
[1760165822334,0.001,3786.2,3786.1,0.7446]
[1760165822861,4.56217056,3786.2,3786.1,0.132]
[1760165823047,5.00757056,3786.2,3786.1,14.5]
[1760165823234,5.13957056,3786.2,3786.1,14.5]
[1760165823652,4.69417056,3786.2,3786.1,14.5]
[1760165824363,4.56217056,3786.2,3786.1,14.5]
[1760165825064,5.00757056,3786.2,3786.1,14.5]
[1760165825270,5.00757056,3786.2,3784.9,0.4295]
[1760165825271,1.92,3785.9,3784.9,0.4295]
[1760165825450,4.56165896,3785.5,3785.4,0.132]
[1760165825772,4.56165896,3785.5,3785.4,14.632]
[1760165826783,1.92,3785.5,3785.4,15.0615]
[1760165827098,4.5614718,3785.8,3785.4,15.0615]
[1760165827396,1.921,3786.2,3785.4,14.632]
[1760165827545,1.921,3786.2,3784.4,0.6336]
[1760165827546,2.64155048,3785.7,3785.5,0.4295]
[1760165827880,4.56155048,3785.7,3785.6,0.4295]
[1760165828077,4.56155048,3785.7,3785.6,0.132]
[1760165828969,4.56155048,3785.7,3785.6,0.5615]
[1760165829162,4.56155048,3785.7,3785.6,0.132]
[1760165830148,1.92,3785.7,3785.6,0.132]
[1760165830353,1.92,3785.7,3785.6,0.5615]
[1760165830550,0.001,3786.2,3785.7,2.64148856]
[1760165830750,0.001,3786.2,3786.1,0.1831]
[1760165830964,0.001,3786.2,3786.1,0.3151]
[1760165831169,0.001,3786.2,3786.1,0.132]
[1760165831170,2.64217056,3786.2,3786.1,0.132]
[1760165832183,2.64217056,3786.2,3785.3,0.4295]
[1760165832486,2.64217056,3786.2,3785.4,0.4295]
[1760165832487,2.64130557,3786.1,3785.4,0.4295]
[1760165832662,0.001,3786.2,3785.4,0.4295]
[1760165832865,2.64157752,3785.7,3785.4,0.4295]
[1760165833169,0.001,3786.2,3784.9,0.4295]
[1760165833170,2.64174029,3785.4,3784.9,0.4295]
[1760165833374,2.64178014,3785.4,3785.0,0.4295]
[1760165833583,2.64186832,3785.2,3785.1,0.4295]
[1760165833786,2.64180862,3785.3,3785.1,0.4295]
[1760165834171,1.92,3785.6,3785.2,0.4295]
[1760165834373,2.64124032,3786.1,3784.3,0.6336]
[1760165834554,2.64178049,3785.4,3784.6,2.64226367]
[1760165834750,2.64165844,3785.6,3784.7,0.4295]
[1760165834960,2.64167599,3785.5,3784.8,2.64214753]
[1760165835154,2.64171821,3785.5,3784.9,0.4295]
[1760165835357,2.64173428,3785.4,3784.9,0.4295]
[1760165835661,1.92,3785.7,3784.9,0.4295]
[1760165835879,1.92,3785.8,3784.9,3.07151607]
[1760165836195,2.64158962,3785.6,3785.0,0.4295]
[1760165836368,2.64158231,3785.7,3785.0,0.4295]
[1760165836685,2.64143003,3785.9,3785.0,0.4295]
[1760165836885,2.64222284,3786.2,3785.1,0.6336]
[1760165837185,0.001,3786.2,3786.1,0.1831]
[1760165837393,0.001,3786.2,3786.1,0.6126]
[1760165839094,0.001,3786.2,3786.1,3.25384032]
[1760165839294,0.001,3786.2,3786.1,1.2462]
[1760165839604,0.001,3786.2,3786.1,0.6126]
[1760165840909,2.64217056,3786.2,3786.1,0.1831]
[1760165841111,0.001,3786.2,3785.5,0.4295]
[1760165841275,2.6415675,3785.7,3785.5,0.4295]
[1760165841608,2.64160026,3785.6,3784.8,2.64214753]
[1760165841807,2.64153089,3785.7,3784.9,0.6336]
[1760165841976,2.64132347,3786.0,3785.0,3.07149966]
[1760165842179,0.001,3786.2,3785.9,0.132]
[1760165842392,2.64131008,3786.0,3785.9,0.132]
[1760165842909,2.64169873,3785.5,3785.0,0.4295]
[1760165843110,2.64169873,3785.5,3784.3,0.002]
[1760165843111,2.64169873,3785.5,3784.7,2.64216561]
[1760165843310,2.64169873,3785.5,3785.1,0.4295]
[1760165843512,2.64169873,3785.5,3784.7,2.64216561]
[1760165843714,2.64174194,3785.4,3785.2,0.4295]
[1760165844010,2.64174194,3785.4,3785.3,0.4295]
[1760165844214,0.001,3786.2,3785.3,0.4295]
[1760165844611,2.64151029,3785.8,3785.3,0.4295]
[1760165845018,2.64138954,3785.9,3785.3,0.4295]
[1760165845221,2.64146101,3785.8,3785.3,0.4295]
[1760165845430,2.64151982,3785.7,3785.4,0.4295]
[1760165845803,2.64160277,3785.6,3784.7,0.6336]
[1760165846021,2.64153297,3785.7,3784.9,3.0715716]
[1760165846333,0.001,3786.2,3784.9,3.0715716]
[1760165846334,2.64160809,3785.6,3785.0,0.4295]
[1760165846490,1.921,3786.2,3785.0,3.07149526]
[1760165846694,0.001,3786.2,3786.1,0.1831]
[1760165846907,0.001,3786.2,3786.1,0.6126]
[1760165847691,0.001,3786.2,3784.3,0.002]
[1760165847898,0.001,3786.2,3784.9,0.4295]
[1760165848131,2.6415194,3785.7,3784.9,3.07155761]
[1760165848306,2.6415194,3785.7,3784.9,2.64205761]
[1760165848497,2.64158748,3785.7,3785.0,0.4295]
[1760165848694,2.64159941,3785.6,3785.0,0.4295]
[1760165849030,2.64153444,3785.7,3785.0,3.07150511]
[1760165849244,2.64153444,3785.7,3785.1,0.435]
[1760165849927,2.64139009,3785.9,3785.1,0.435]
[1760165850126,0.001,3786.2,3785.2,2.64186832]
[1760165850327,2.6413658,3786.0,3785.2,2.64186832]
[1760165850628,2.64128063,3786.1,3785.3,0.435]
[1760165851044,2.64151081,3785.8,3785.3,0.435]
[1760165851220,2.64155958,3785.7,3785.4,0.435]
[1760165851425,2.64155958,3785.7,3785.5,0.435]